fUST/lending_fUST_20250524
["ID","MTS","AMOUNT","RATE_DAILY","PERIOD"]
[362199327,1748087444327,-430.0,0.00021917,3]
[362199328,1748087444336,-430.0,0.00021917,3]
[362199329,1748087444345,-370.0,0.00021917,3]
[362199330,1748087444355,-400.44890749,0.00021917,3]
[362199331,1748087444364,-400.0,0.00021917,3]
[362199332,1748087444373,-430.0,0.00021917,3]
[362199333,1748087444382,-430.0,0.00021917,3]
[362199334,1748087444403,-430.0,0.00021917,3]
[362199335,1748087444414,-400.0,0.00021917,3]
[362199336,1748087444423,-430.0,0.00021917,3]
[362199337,1748087444432,-430.0,0.00021917,3]
[362199338,1748087444442,-400.0,0.00021917,3]
[362199339,1748087444452,-430.0,0.00021917,3]
[362199340,1748087444461,-405.22523388,0.00021917,3]
[362199341,1748087444471,-450.0,0.00021917,3]
[362199342,1748087444482,-250.0,0.00021917,3]
[362199343,1748087444491,-430.0,0.00021917,3]
[362199344,1748087444500,-430.0,0.00021917,3]
[362199345,1748087444510,-430.0,0.00021917,3]
[362199346,1748087444519,-403.28649823,0.00021917,3]
[362199347,1748087444528,-430.0,0.00021917,3]
[362199348,1748087444539,-430.0,0.00021917,3]
[362199349,1748087444548,-430.0,0.00021917,3]
[362199350,1748087444558,-350.0,0.00021917,3]
[362199351,1748087444567,-430.0,0.00021917,3]
[362199352,1748087444577,-430.0,0.00021917,3]
[362199353,1748087444586,-430.0,0.00021917,3]
[362199354,1748087444595,-430.0,0.00021917,3]
[362199355,1748087444604,-514.83197627,0.00021917,3]
[362199356,1748087444614,-430.0,0.00021917,3]
[362199357,1748087444624,-430.0,0.00021917,3]
[362199358,1748087444633,-430.0,0.00021917,3]
[362199359,1748087444643,-430.0,0.00021917,3]
[362199360,1748087444654,-430.0,0.00021917,3]
[362199361,1748087444663,-430.0,0.00021917,3]
[362199362,1748087444673,-430.0,0.00021917,3]
[362199363,1748087444684,-430.0,0.00021917,3]
[362199364,1748087444694,-430.0,0.00021917,3]
[362199365,1748087444703,-360.33279551,0.00021917,3]
[362199366,1748087444714,-430.0,0.00021917,3]
[362199367,1748087444725,-300.0,0.00021917,3]
[362199368,1748087444734,-430.0,0.00021917,3]
[362199369,1748087444743,-498.02610593,0.00021917,3]
[362199370,1748087444753,-430.0,0.00021917,3]
[362199371,1748087444762,-359.79214509,0.00021917,3]
[362199372,1748087444772,-430.0,0.00021917,3]
[362199373,1748087444781,-432.7624533,0.00021917,3]
[362199374,1748087444791,-350.0,0.00021917,3]
[362199375,1748087444800,-430.0,0.00021917,3]
[362199376,1748087444810,-430.0,0.00021917,3]
[362199377,1748087444820,-430.0,0.00021917,3]
[362199378,1748087444829,-430.0,0.00021917,3]
[362199379,1748087444839,-430.0,0.00021917,3]
[362199380,1748087444849,-430.0,0.00021917,3]
[362199381,1748087444858,-404.51978801,0.00021917,3]
[362199382,1748087444868,-411.36628115,0.00021917,3]
[362199383,1748087444877,-359.04222604,0.00021917,3]
[362199384,1748087444886,-437.71007163,0.00021917,3]
[362199385,1748087444896,-430.0,0.00021917,3]
[362199386,1748087444905,-430.0,0.00021917,3]
[362199387,1748087444914,-430.0,0.00021917,3]
[362199388,1748087444924,-430.0,0.00021917,3]
[362199389,1748087444933,-430.0,0.00021917,3]
[362199390,1748087444944,-430.0,0.00021917,3]
[362199391,1748087444954,-430.0,0.00021917,3]
[362199392,1748087444963,-438.75,0.00021917,3]
[362199393,1748087444973,-440.80753066,0.00021917,3]
[362199394,1748087444982,-997.17,0.00021917,3]
[362199395,1748087444992,-430.0,0.00021917,3]
[362199396,1748087445001,-408.92902728,0.00021917,3]
[362199397,1748087445011,-740.19,0.00021917,3]
[362199398,1748087445021,-350.0,0.00021917,3]
[362199399,1748087445032,-430.0,0.00021917,3]
[362199400,1748087445042,-430.0,0.00021917,3]
[362199401,1748087445053,-430.0,0.00021917,3]
[362199402,1748087445064,-1664.26,0.00021917,3]
[362199403,1748087445074,-430.0,0.00021917,3]
[362199404,1748087445084,-430.0,0.00021917,3]
[362199405,1748087445094,-430.0,0.00021917,3]
[362199406,1748087445103,-430.0,0.00021917,3]
[362199407,1748087445114,-430.0,0.00021917,3]
[362199408,1748087445124,-430.0,0.00021917,3]
[362199409,1748087445134,-430.0,0.00021917,3]
[362199410,1748087445145,-2152.4,0.00021917,3]
[362199411,1748087445155,-430.0,0.00021917,3]
[362199412,1748087445165,-430.0,0.00021917,3]
[362199413,1748087445174,-430.0,0.00021917,3]
[362199414,1748087445184,-400.0,0.00021917,3]
[362199415,1748087445193,-561.89,0.00021917,3]
[362199416,1748087445204,-430.0,0.00021917,3]
[362199417,1748087445213,-430.0,0.00021917,3]
[362199418,1748087445224,-430.0,0.00021917,3]
[362199419,1748087445234,-430.0,0.00021917,3]
[362199420,1748087445243,-430.0,0.00021917,3]
[362199421,1748087445254,-430.0,0.00021917,3]
[362199422,1748087445263,-430.0,0.00021917,3]
[362199423,1748087445273,-430.0,0.00021917,3]
[362199424,1748087445284,-430.0,0.00021917,3]
[362199425,1748087445294,-430.0,0.00021917,3]
[362199426,1748087445303,-430.0,0.00021917,3]
[362199427,1748087445313,-430.0,0.00021917,3]
[362199428,1748087445322,-430.0,0.00021917,3]
[362199429,1748087445331,-430.0,0.00021917,3]
[362199430,1748087445341,-430.0,0.00021917,3]
[362199431,1748087445351,-430.0,0.00021917,3]
[362199432,1748087445360,-434.98442167,0.00021917,3]
[362199433,1748087445371,-153.67212571,0.00021917,3]
[362199434,1748087445381,-180.75010099,0.00021917,3]
[362199435,1748087445390,-430.0,0.00021917,3]
[362199436,1748087445404,-430.0,0.00021917,3]
[362199437,1748087445414,-430.0,0.00021917,3]
[362199438,1748087445424,-318.67535326,0.00021917,3]
[362199439,1748087445433,-430.0,0.00021917,3]
[362199440,1748087445444,-460.34,0.00021917,3]
[362199441,1748087445458,-404.0190119,0.00021917,3]
[362199442,1748087445468,-430.0,0.00021917,3]
[362199443,1748087445478,-430.0,0.00021917,3]
[362199444,1748087445488,-430.0,0.00021917,3]
[362199445,1748087445498,-406.87933725,0.00021917,3]
[362199446,1748087445507,-430.0,0.00021917,3]
[362199447,1748087445517,-400.0,0.00021917,3]
[362199448,1748087445527,-430.0,0.00021917,3]
[362199449,1748087445536,-430.0,0.00021917,3]
[362199450,1748087445546,-355.58193868,0.00021917,3]
[362199451,1748087445698,-430.0,0.00021917,3]
[362199452,1748087445709,-430.0,0.00021917,3]
[362199453,1748087445718,-340.0,0.00021917,3]
[362199455,1748087445728,-151.42443319,0.00021917,3]
[362199456,1748087445738,-430.0,0.00021917,3]
[362199458,1748087445747,-500.0,0.00021917,3]
[362199460,1748087445756,-323.84184174,0.00021917,3]
[362199462,1748087445766,-500.0,0.00021917,3]
[362199463,1748087445775,-500.0,0.00021917,3]
[362199465,1748087445786,-500.0,0.00021917,3]
[362199467,1748087445795,-500.0,0.00021917,3]
[362199468,1748087445806,-500.0,0.00021917,3]
[362199469,1748087445816,-500.0,0.00021917,3]
[362199470,1748087445826,-778.35,0.00021917,3]
[362199471,1748087445835,-430.0,0.00021917,3]
[362199472,1748087445845,-430.0,0.00021917,3]
[362199473,1748087445855,-430.0,0.00021917,3]
[362199475,1748087445865,-430.0,0.00021917,3]
[362199476,1748087445874,-430.0,0.00021917,3]
[362199478,1748087445883,-430.0,0.00021917,3]
[362199479,1748087445892,-430.0,0.00021917,3]
[362199480,1748087445902,-430.0,0.00021917,3]
[362199481,1748087445911,-430.0,0.00021917,3]
[362199483,1748087445920,-430.0,0.00021917,3]
[362199484,1748087445928,-430.0,0.00021917,3]
[362199485,1748087445938,-430.0,0.00021917,3]
[362199486,1748087445948,-400.0,0.00021917,3]
[362199487,1748087445959,-430.0,0.00021917,3]
[362199488,1748087445969,-430.0,0.00021917,3]
[362199489,1748087445978,-430.0,0.00021917,3]
[362199490,1748087445988,-962.67,0.00021917,3]
[362199491,1748087445998,-430.0,0.00021917,3]
[362199492,1748087446007,-506.03,0.00021917,3]
[362199494,1748087446016,-935.08,0.00021917,3]
[362199496,1748087446026,-400.0,0.00021917,3]
[362199497,1748087446036,-405.63279346,0.00021917,3]
[362199498,1748087446047,-430.0,0.00021917,3]
[362199499,1748087446057,-450.0,0.00021917,3]
[362199501,1748087446066,-439.52,0.00021917,3]
[362199502,1748087446075,-430.0,0.00021917,3]
[362199504,1748087446084,-430.0,0.00021917,3]
[362199506,1748087446093,-430.0,0.00021917,3]
[362199507,1748087446102,-430.0,0.00021917,3]
[362199508,1748087446112,-430.0,0.00021917,3]
[362199510,1748087446121,-1054.73,0.00021917,3]
[362199512,1748087446130,-430.0,0.00021917,3]
[362199513,1748087446140,-514.11,0.00021917,3]
[362199514,1748087446148,-554.17,0.00021917,3]
[362199515,1748087446158,-430.0,0.00021917,3]
[362199516,1748087446169,-430.0,0.00021917,3]
[362199518,1748087446179,-2670.37,0.00021917,3]
[362199520,1748087446188,-430.0,0.00021917,3]
[362199522,1748087446197,-3717.41,0.00021917,2]
[362199523,1748087446207,-430.0,0.00021917,3]
[362199524,1748087446216,-430.0,0.00021917,3]
[362199525,1748087446226,-430.0,0.00021917,3]
[362199526,1748087446235,-1599.0,0.00021917,3]
[362199527,1748087446244,-609.25,0.00021917,3]
[362199528,1748087446253,-400.0,0.00021917,3]
[362199529,1748087446262,-430.0,0.00021917,3]
[362199530,1748087446272,-1662.35,0.00021917,3]
[362199531,1748087446282,-439.60832104,0.00021917,3]
[362199532,1748087446291,-430.0,0.00021917,3]
[362199533,1748087446301,-430.0,0.00021917,3]
[362199534,1748087446310,-430.0,0.00021917,3]
[362199535,1748087446320,-430.0,0.00021917,3]
[362199536,1748087446329,-430.0,0.00021917,3]
[362199537,1748087446339,-430.0,0.00021917,3]
[362199538,1748087446348,-430.0,0.00021917,3]
[362199539,1748087446358,-430.0,0.00021917,3]
[362199540,1748087446368,-467.0,0.00022017,2]
[362199541,1748087446377,-500.0,0.0002219,3]
[362199542,1748087446387,-500.0,0.0002219,3]
[362199543,1748087446400,-500.0,0.0002219,3]
[362199544,1748087446410,-500.0,0.0002219,3]
[362199545,1748087446420,-270.0,0.00022191,3]
[362199546,1748087446429,-270.0,0.00022191,3]
[362199547,1748087446438,-430.0,0.00022191,3]
[362199548,1748087446449,-400.0,0.00022191,3]
[362199549,1748087446458,-430.0,0.00022191,3]
[362199550,1748087446468,-430.0,0.00022191,3]
[362199551,1748087446480,-430.0,0.00022191,3]
[362199552,1748087446490,-430.0,0.00022191,3]
[362199553,1748087446499,-430.0,0.00022191,3]
[362199554,1748087446509,-430.0,0.00022191,3]
[362199555,1748087446518,-430.0,0.00022191,3]
[362199556,1748087446528,-256.9678111,0.00022191,3]
[362199557,1748087446537,-430.0,0.00022191,3]
[362199558,1748087446546,-474.40893447,0.00022191,3]
[362199559,1748087446556,-430.0,0.00022191,3]
[362199560,1748087446566,-430.0,0.00022191,3]
[362199561,1748087446575,-430.0,0.00022191,3]
[362199562,1748087446588,-430.0,0.00022191,3]
[362199563,1748087446596,-393.9916574,0.00022191,3]
[362199564,1748087446606,-380.87740925,0.00022191,3]
[362199565,1748087446615,-378.29108148,0.00022191,3]
[362199566,1748087446625,-430.0,0.00022191,3]
[362199567,1748087446636,-393.66,0.00022191,3]
[362199568,1748087446646,-320.0,0.00022191,3]
[362199569,1748087446655,-430.0,0.00022191,3]
[362199570,1748087446665,-430.0,0.00022191,3]
[362199571,1748087446676,-370.0,0.00022191,3]
[362199572,1748087446686,-430.0,0.00022191,3]
[362199573,1748087446695,-376.98673943,0.00022191,3]
[362199574,1748087446704,-320.0,0.00022191,3]
[362199575,1748087446714,-320.0,0.00022191,3]
[362199576,1748087446724,-512.8,0.00022191,2]
[362199577,1748087446734,-178.7719375,0.00022191,3]
[362199578,1748087446744,-430.0,0.00022191,3]
[362199579,1748087446753,-430.0,0.00022191,3]
[362199580,1748087446763,-320.0,0.00022191,3]
[362199581,1748087446772,-430.0,0.00022191,3]
[362199582,1748087446781,-370.0,0.00022191,3]
[362199583,1748087446792,-430.0,0.00022191,3]
[362199584,1748087446804,-430.0,0.00022191,3]
[362199585,1748087446815,-430.0,0.00022191,3]
[362199586,1748087446826,-430.0,0.00022191,3]
[362199587,1748087446835,-430.0,0.00022191,3]
[362199588,1748087446845,-234.4739206,0.00022191,3]
[362199589,1748087446854,-430.0,0.00022191,3]
[362199590,1748087446863,-430.0,0.00022191,3]
[362199591,1748087446873,-430.0,0.00022191,3]
[362199592,1748087446882,-320.0,0.00022191,3]
[362199593,1748087446893,-430.0,0.00022191,3]
[362199594,1748087446902,-430.0,0.00022191,3]
[362199595,1748087446912,-370.0,0.00022191,3]
[362199596,1748087446922,-430.0,0.00022191,3]
[362199597,1748087446932,-350.66145062,0.00022191,3]
[362199598,1748087446941,-370.0,0.00022191,3]
[362199599,1748087446951,-430.0,0.00022191,3]
[362199600,1748087446959,-370.0,0.00022191,3]
[362199601,1748087446969,-430.0,0.00022191,3]
[362199602,1748087446978,-470.0,0.00022191,3]
[362199603,1748087446988,-430.0,0.00022191,3]
[362199604,1748087446997,-450.0,0.00022191,3]
[362199605,1748087447006,-430.0,0.00022191,3]
[362199606,1748087447015,-430.0,0.00022191,3]
[362199607,1748087447026,-430.0,0.00022191,3]
[362199608,1748087447036,-430.0,0.00022191,3]
[362199609,1748087447046,-370.0,0.00022191,3]
[362199610,1748087447057,-430.0,0.00022191,3]
[362199611,1748087447067,-430.0,0.00022191,3]
[362199612,1748087447076,-430.0,0.00022191,3]
[362199613,1748087447085,-430.0,0.00022191,3]
[362199614,1748087447095,-430.0,0.00022191,3]
[362199615,1748087447104,-430.0,0.00022191,3]
[362199616,1748087447114,-400.0,0.00022191,3]
[362199617,1748087447125,-430.0,0.00022191,3]
[362199618,1748087447135,-430.0,0.00022191,3]
[362199619,1748087447145,-430.0,0.00022191,3]
[362199620,1748087447157,-430.0,0.00022191,3]
[362199621,1748087447166,-430.0,0.00022191,3]
[362199622,1748087447175,-430.0,0.00022191,3]
[362199623,1748087447185,-430.0,0.00022191,3]
[362199624,1748087447194,-273.27911492,0.00022191,3]
[362199625,1748087447203,-270.0,0.00022191,3]
[362199626,1748087447212,-367.25566605,0.00022191,3]
[362199627,1748087447223,-430.0,0.00022191,3]
[362199628,1748087447232,-346.12578421,0.00022191,3]
[362199629,1748087447241,-430.0,0.00022191,3]
[362199630,1748087447251,-430.0,0.00022191,3]
[362199631,1748087447260,-430.0,0.00022191,3]
[362199632,1748087447269,-430.0,0.00022191,3]
[362199633,1748087447278,-430.0,0.00022191,3]
[362199634,1748087447287,-430.0,0.00022191,3]
[362199635,1748087447297,-374.00657455,0.00022191,3]
[362199636,1748087447307,-430.0,0.00022191,3]
[362199637,1748087447316,-430.0,0.00022191,3]
[362199638,1748087447325,-430.0,0.00022191,3]
[362199639,1748087447334,-350.0,0.00022191,3]
[362199640,1748087447344,-430.0,0.00022191,3]
[362199641,1748087447353,-358.81304738,0.00022191,3]
[362199642,1748087447362,-355.94100041,0.00022191,3]
[362199643,1748087447372,-430.0,0.00022191,3]
[362199644,1748087447381,-350.0,0.00022191,3]
[362199645,1748087447390,-350.0,0.00022191,3]
[362199646,1748087447401,-430.0,0.00022191,3]
[362199647,1748087447410,-430.0,0.00022191,3]
[362199648,1748087447419,-438.75,0.00022191,3]
[362199649,1748087447428,-997.17,0.00022191,3]
[362199650,1748087447437,-361.58536558,0.00022191,3]
[362199651,1748087447448,-740.19,0.00022191,3]
[362199652,1748087447457,-430.0,0.00022191,3]
[362199653,1748087447466,-450.0,0.00022191,3]
[362199654,1748087447475,-1664.26,0.00022191,3]
[362199655,1748087447485,-350.0,0.00022191,3]
[362199656,1748087447494,-430.0,0.00022191,3]
[362199657,1748087447503,-430.0,0.00022191,3]
[362199658,1748087447513,-430.0,0.00022191,3]
[362199659,1748087447523,-430.0,0.00022191,3]
[362199660,1748087447532,-350.0,0.00022191,3]
[362199661,1748087447541,-430.0,0.00022191,3]
[362199662,1748087447550,-2152.4,0.00022191,3]
[362199663,1748087447559,-430.0,0.00022191,3]
[362199664,1748087447568,-430.0,0.00022191,3]
[362199665,1748087447578,-430.0,0.00022191,3]
[362199666,1748087447587,-201.69857962,0.00022191,3]
[362199667,1748087447596,-430.0,0.00022191,3]
[362199668,1748087447605,-430.0,0.00022191,3]
[362199669,1748087447614,-430.0,0.00022191,3]
[362199670,1748087447623,-430.0,0.00022191,3]
[362199671,1748087447632,-430.0,0.00022191,3]
[362199672,1748087447642,-430.0,0.00022191,3]
[362199673,1748087447651,-430.0,0.00022191,3]
[362199674,1748087447660,-430.0,0.00022191,3]
[362199675,1748087447669,-430.0,0.00022191,3]
[362199676,1748087447678,-430.0,0.00022191,3]
[362199677,1748087447687,-430.0,0.00022191,3]
[362199678,1748087447696,-277.98416002,0.00022191,3]
[362199679,1748087447705,-430.0,0.00022191,3]
[362199680,1748087447714,-460.34,0.00022191,3]
[362199681,1748087447723,-430.0,0.00022191,3]
[362199682,1748087447732,-316.52925184,0.00022191,3]
[362199683,1748087447741,-430.0,0.00022191,3]
[362199684,1748087447751,-430.0,0.00022191,3]
[362199685,1748087447760,-310.0,0.00022191,3]
[362199686,1748087447769,-310.0,0.00022191,3]
[362199687,1748087447778,-430.0,0.00022191,3]
[362199688,1748087447787,-430.0,0.00022191,3]
[362199689,1748087447796,-778.35,0.00022191,3]
[362199690,1748087447805,-430.0,0.00022191,3]
[362199691,1748087447816,-430.0,0.00022191,3]
[362199692,1748087447825,-450.0,0.00022191,3]
[362199693,1748087447834,-430.0,0.00022191,3]
[362199694,1748087447843,-430.0,0.00022191,3]
[362199695,1748087447853,-430.0,0.00022191,3]
[362199696,1748087447862,-370.0,0.00022191,3]
[362199697,1748087447871,-430.0,0.00022191,3]
[362199698,1748087447880,-430.0,0.00022191,3]
[362199699,1748087447890,-430.0,0.00022191,3]
[362199700,1748087447899,-430.0,0.00022191,3]
[362199701,1748087447907,-430.0,0.00022191,3]
[362199702,1748087447917,-962.67,0.00022191,3]
[362199703,1748087447926,-430.0,0.00022191,3]
[362199704,1748087447935,-506.03,0.00022191,3]
[362199705,1748087447944,-935.08,0.00022191,3]
[362199706,1748087447954,-430.0,0.00022191,3]
[362199707,1748087447963,-439.52,0.00022191,3]
[362199708,1748087447972,-430.0,0.00022191,3]
[362199709,1748087447981,-1054.73,0.00022191,3]
[362199710,1748087447990,-514.11,0.00022191,3]
[362199711,1748087447999,-430.0,0.00022191,3]
[362199712,1748087448009,-430.0,0.00022191,3]
[362199713,1748087448018,-2670.37,0.00022191,3]
[362199714,1748087448027,-164.40955094,0.00022191,3]
[362199715,1748087448036,-430.0,0.00022191,3]
[362199716,1748087448046,-1599.0,0.00022191,3]
[362199717,1748087448055,-609.25,0.00022191,3]
[362199718,1748087448064,-430.0,0.00022191,3]
[362199719,1748087448073,-1662.35,0.00022191,3]
[362199720,1748087448082,-430.0,0.00022191,3]
[362199721,1748087448092,-430.0,0.00022191,3]
[362199722,1748087448102,-430.0,0.00022191,3]
[362199723,1748087448213,-430.0,0.00022191,3]
[362199724,1748087448223,-430.0,0.00022191,3]
[362199725,1748087448245,-430.0,0.00022191,3]
[362199726,1748087448258,-430.0,0.00022191,3]
[362199727,1748087448269,-160.0,0.00022307,2]
[362199728,1748087448279,-500.0,0.00022325,2]
[362199729,1748087448289,-160.0,0.00022325,2]
[362199730,1748087448299,-215.334662,0.00022328,2]
[362199731,1748087448310,-500.0,0.00022328,2]
[362199732,1748087448320,-500.0,0.00022328,2]
[362199733,1748087448330,-202.33176689,0.00022329,2]
[362199734,1748087448341,-500.0,0.00022334,2]
[362199735,1748087448351,-500.0,0.00022334,2]
[362199736,1748087448362,-372.48068192,0.00022345,2]
[362199737,1748087448372,-500.0,0.00022345,2]
[362199738,1748087448382,-500.0,0.0002235,2]
[362199739,1748087448392,-500.0,0.0002235,2]
[362199740,1748087448404,-500.0,0.00022353,2]
[362199741,1748087448415,-160.0,0.00022412,2]
[362199742,1748087448425,-229.12393663,0.00022412,2]
[362199743,1748087448435,-207.4,0.00022451,2]
[362199744,1748087448446,-500.0,0.00022464,2]
[362199745,1748087448457,-500.0,0.00022464,3]
[362199746,1748087448466,-279.26515528,0.00022464,3]
[362199747,1748087448606,-220.73484472,0.00022464,3]
[362199748,1748087448616,-430.0,0.00022465,3]
[362199749,1748087448625,-430.0,0.00022465,3]
[362199750,1748087448635,-430.0,0.00022465,3]
[362199751,1748087448644,-430.0,0.00022465,3]
[362199752,1748087448654,-512.8,0.00022465,2]
[362199753,1748087448663,-430.0,0.00022465,3]
[362199754,1748087448673,-430.0,0.00022465,3]
[362199755,1748087448682,-430.0,0.00022465,3]
[362199756,1748087448692,-430.0,0.00022465,3]
[362199757,1748087448701,-430.0,0.00022465,3]
[362199758,1748087448711,-430.0,0.00022465,3]
[362199759,1748087448720,-430.0,0.00022465,3]
[362199760,1748087448730,-430.0,0.00022465,3]
[362199761,1748087448740,-430.0,0.00022465,3]
[362199762,1748087448750,-430.0,0.00022465,3]
[362199763,1748087448760,-430.0,0.00022465,3]
[362199764,1748087448770,-430.0,0.00022465,3]
[362199765,1748087448780,-430.0,0.00022465,3]
[362199766,1748087448789,-430.0,0.00022465,3]
[362199767,1748087448799,-430.0,0.00022465,3]
[362199768,1748087448810,-430.0,0.00022465,3]
[362199769,1748087448819,-430.0,0.00022465,3]
[362199770,1748087448829,-434.18,0.00022465,3]
[362199771,1748087448838,-430.0,0.00022465,3]
[362199772,1748087448848,-430.0,0.00022465,3]
[362199773,1748087448858,-438.75,0.00022465,3]
[362199774,1748087448867,-997.17,0.00022465,3]
[362199775,1748087448877,-740.19,0.00022465,3]
[362199776,1748087448887,-430.0,0.00022465,3]
[362199777,1748087448897,-1664.26,0.00022465,3]
[362199778,1748087448907,-430.0,0.00022465,3]
[362199779,1748087448917,-430.0,0.00022465,3]
[362199780,1748087448926,-430.0,0.00022465,3]
[362199781,1748087448935,-2152.4,0.00022465,3]
[362199782,1748087448945,-430.0,0.00022465,3]
[362199783,1748087448954,-430.0,0.00022465,3]
[362199784,1748087448963,-430.0,0.00022465,3]
[362199785,1748087448972,-320.87080426,0.00022465,3]
[362199786,1748087448982,-430.0,0.00022465,3]
[362199787,1748087448992,-310.0,0.00022465,3]
[362199788,1748087449001,-314.90034739,0.00022465,3]
[362199789,1748087449011,-430.0,0.00022465,3]
[362199790,1748087449020,-119.6052369,0.00022465,3]
[362199791,1748087449041,-310.3947631,0.00022465,3]
[362199792,1748087449050,-460.34,0.00022465,3]
[362199793,1748087449060,-430.0,0.00022465,3]
[362199794,1748087449070,-430.0,0.00022465,3]
[362199795,1748087449079,-778.35,0.00022465,3]
[362199796,1748087449090,-430.0,0.00022465,3]
[362199797,1748087449100,-430.0,0.00022465,3]
[362199798,1748087449109,-540.39180069,0.00022465,3]
[362199799,1748087449119,-430.0,0.00022465,3]
[362199800,1748087449129,-430.0,0.00022465,3]
[362199801,1748087449139,-430.0,0.00022465,3]
[362199802,1748087449148,-430.0,0.00022465,3]
[362199803,1748087449158,-962.67,0.00022465,3]
[362199804,1748087449168,-506.03,0.00022465,3]
[362199805,1748087449177,-935.08,0.00022465,3]
[362199806,1748087449187,-430.0,0.00022465,3]
[362199807,1748087449197,-439.52,0.00022465,3]
[362199808,1748087449207,-430.0,0.00022465,3]
[362199809,1748087449217,-1054.73,0.00022465,3]
[362199810,1748087449228,-514.11,0.00022465,3]
[362199811,1748087449237,-29.92487866,0.00022465,3]
[362199812,1748087449410,-400.07512134,0.00022465,3]
[362199813,1748087449421,-2670.37,0.00022465,3]
[362199814,1748087449431,-1599.0,0.00022465,3]
[362199815,1748087449441,-609.25,0.00022465,3]
[362199816,1748087449450,-220.0,0.00022465,3]
[362199817,1748087449459,-1662.35,0.00022465,3]
[362199818,1748087449468,-430.0,0.00022465,3]
[362199819,1748087449478,-430.0,0.00022465,3]
[362199820,1748087449487,-430.0,0.00022465,3]
[362199821,1748087449497,-430.0,0.00022465,3]
[362199822,1748087449506,-430.0,0.00022465,3]
[362199823,1748087449516,-500.0,0.00022528,2]
[362199824,1748087449526,-500.0,0.00022528,2]
[362199825,1748087449536,-1069.24939011,0.00022557,2]
[362199826,1748087449545,-500.0,0.00022738,3]
[362199827,1748087449555,-500.0,0.00022738,3]
[362199828,1748087449564,-430.0,0.00022739,3]
[362199829,1748087449573,-430.0,0.00022739,3]
[362199830,1748087449582,-430.0,0.00022739,3]
[362199831,1748087449591,-512.8,0.00022739,2]
[362199832,1748087449601,-430.0,0.00022739,3]
[362199833,1748087449611,-430.0,0.00022739,3]
[362199834,1748087449620,-430.0,0.00022739,3]
[362199835,1748087449629,-430.0,0.00022739,3]
[362199836,1748087449638,-430.0,0.00022739,3]
[362199837,1748087449647,-430.0,0.00022739,3]
[362199838,1748087449656,-430.0,0.00022739,3]
[362199839,1748087449666,-430.0,0.00022739,3]
[362199840,1748087449675,-430.0,0.00022739,3]
[362199841,1748087449684,-430.0,0.00022739,3]
[362199842,1748087449694,-430.0,0.00022739,3]
[362199843,1748087449703,-430.0,0.00022739,3]
[362199844,1748087449713,-530.0,0.00022739,3]
[362199845,1748087449722,-430.0,0.00022739,3]